{"text_format":"1","workbook":"xlsx","n_sheets":9,"sheets":["Formato para el ejercicio (F1)","Solicitud de Anticipo (F2-N)","Solicitud de Anticipo I (F2-I)","Comprobación Ant. Viáticos (F3)","Comp. Ant. Viáticos Int. (F3-I)","Reembolso de Viáticos (F4)","Informe de Comision (F5)","Gtos sin Comp (F6)","desglose11"],"not_rendered":{"charts":0,"images":2,"macros":1,"external_links":0,"defined_names":6,"comments":1,"pivot_tables":0},"unopened":[],"bounds":{"document_bytes":16777216,"sheet_cells":100000,"rows_first":2000,"rows_last":500,"rows_between":2000,"halvings":0,"cell_chars":16384,"cell_head_chars":4096},"cells_cut":0,"cells_raw":0,"read":"whole","date_system":"1900"}

{"sheet":"Formato para el ejercicio (F1)","index":0,"n_rows":52,"n_cols":10,"rows_kept":52,"cut":false,"hidden":false,"merged":[[3,0,3,9],[21,2,21,3],[10,1,10,9],[13,7,13,8],[13,5,13,6],[45,0,45,4],[45,5,45,9],[17,2,17,8],[21,5,21,6],[21,7,21,8],[32,1,32,5],[34,0,34,2],[34,6,34,7],[26,1,26,8],[34,8,34,9],[19,1,19,2],[19,3,19,5],[19,6,19,7],[37,0,37,2],[36,3,36,7],[37,3,37,7],[42,11,42,12],[43,1,43,6],[43,8,43,9],[43,11,43,12],[40,11,40,12],[41,0,41,2],[41,3,41,7],[41,8,41,9],[41,11,41,12],[40,3,40,7],[40,8,40,9],[40,0,40,2],[42,0,42,2],[42,3,42,7],[42,8,42,9],[51,0,51,4],[51,5,51,9],[50,0,50,4],[50,5,50,9],[46,0,46,4],[46,5,46,9],[48,5,48,9],[49,5,49,9],[49,0,49,4],[48,0,48,4],[39,0,39,2],[39,3,39,7],[39,8,39,9],[39,11,39,12],[28,1,29,1],[28,2,29,8],[38,0,38,2],[38,3,38,7],[38,8,38,9],[38,11,38,12],[37,8,37,9],[36,8,36,9],[36,0,36,2]]}
[]
[null,null,null,null,null,null,null,null,null,"Secretaria de Administración"]
[null,null,null,null,null,null,null,null,null,"Dirección de Administración Financiera"]
["FORMATO PARA EL EJERCICIO DEL GASTO"]
[null,null,null,null,null,null,null,null,null,"CÓDIGO DAF: 7092-MAAGRF-CEGP-02-F-01"]
[null,null,null,null,null,null,null,null,null,"NO. DE REVISIÓN: 00"]
[null,null,null,null,null,null,null,null,null,"FECHA DE APROBACIÓN: 28/02/2017"]
[]
[null,null,null,"Fecha",null,null,null,"Folio No."]
[]
[null,"Tipo de Operación                  Cheque   (    )               Transferencia      (    )                   CLC   (    )           Billete de depósito   (   ) "]
[]
[]
[null,"Cuenta Bancaria   ",null,"Banco",null,"No. de Cuenta o Clabe"]
[]
[]
[]
[null,"Beneficiario"]
[]
[null,"Código de Barras",null,null,null,null,"No. de empleado"]
[]
[null,"RFC",null,null,null,"No. de Contrato o Convenio"]
[]
[null,"Valor del bien o servicio","I.V.A.","Nota de crédito","I.V.A de nota de crédito","Otras retenciones"," Impuestos retenidos","Retención I.V.A.","Neto a pagar"]
[null,0,0,0,0,0,0,0,{"$f":"B25+C25-D25-E25-F25-G25-H25","v":0}]
[]
[null,{"$f":"Numletra(I25)","v":"(CERO PESOS 00/100 M.N.)"}]
[]
[null,"Por concepto de: "]
[]
[]
[]
[null,"Registro Presupuestal"]
[]
["Clave U.A. ",null,null,null,"Programa presupuestario",null,"Fuente de financiamiento"]
[]
["Clave presupuestaria",null,null,"Descripción",null,null,null,null,"Importe"]
[null,null,null,null,null,null,null,null,0]
[null,null,null,null,null,null,null,null,0]
[null,null,null,null,null,null,null,null,0]
[null,null,null,null,null,null,null,null,0]
[null,null,null,null,null,null,null,null,0]
[null,null,null,null,null,null,null,null,0]
[null,null,null,null,null,null,null,"Total",{"$f":"SUM(I38:J43)","v":0}]
[]
["Vo.Bo. Fiscalización",null,null,null,null,"Vo. Bo. Presupuesto"]
[]
[]
["Solicita",null,null,null,null,"Autoriza"]
[]
["Nombre y Firma",null,null,null,null,"Nombre y Firma"]
["Puesto",null,null,null,null,"Puesto"]

{"sheet":"Solicitud de Anticipo (F2-N)","index":1,"n_rows":47,"n_cols":10,"rows_kept":47,"cut":false,"hidden":false,"merged":[[20,0,20,6],[19,0,19,9],[42,0,42,3],[43,0,43,3],[21,4,21,5],[22,4,22,5],[32,0,32,8],[25,0,25,8],[26,0,26,8],[27,0,27,8],[30,0,30,8],[31,0,31,8],[21,0,22,3],[46,0,46,3],[46,4,46,9],[47,0,47,3],[47,4,47,9],[37,0,37,3],[37,4,37,9],[38,4,40,9],[41,0,41,9],[39,0,40,0],[39,1,40,1],[39,2,40,2],[39,3,40,3],[44,0,44,3],[43,4,43,9],[44,4,44,9],[42,4,42,9],[3,0,3,9],[10,3,10,4],[10,8,10,9],[12,1,12,5],[12,6,12,7],[12,8,12,9],[13,1,13,4],[13,6,13,9],[14,1,14,4],[14,6,14,9],[15,1,15,9],[17,1,17,2],[18,1,18,2],[17,3,17,5],[18,3,18,5],[17,6,17,9],[18,6,18,9]]}
[]
[null,null,null,null,null,null,null,null,null,"Secretaria de Administración"]
[null,null,null,null,null,null,null,null,null,"Dirección de Administración Financiera"]
["SOLICITUD DE ANTICIPO DE VIÁTICOS NACIONALES"]
[null,null,null,null,null,null,null,null,null,"CÓDIGO DAF: 7092-MAAGRF-CEGP-02-F-02"]
[null,null,null,null,null,null,null,null,null,"NO. DE REVISIÓN: 00"]
[null,null,null,null,null,null,null,null,null,"FECHA DE APROBACIÓN: 28/02/2017"]
[]
[]
[]
[null,null,"Fecha",null,null,null,null,"Folio No. "]
[]
["Comisionado",null,null,null,null,null,"No. de empleado"]
["Puesto",null,null,null,null,"No. de clabe"]
["Lugar de comisión                                           ",null,null,null,null,"Periodo"]
["Objeto de la comisión  "]
[]
["Clave U.A.","Programa presupuestario",null,"Fuente de Financiamiento",null,null,"Clave presupuestaria"]
[]
[]
["Viáticos",null,null,null,null,null,null,"Tarifa","Días","Importe"]
["Viáticos Nacionales",null,null,null,"Sin pernocta",null,null,0,null,{"$f":"H22*I22","v":0}]
[null,null,null,null,"Con pernocta",null,null,0,null,{"$f":"H23*I23","v":0}]
[null,null,null,null,null,null,null,null,"Subtotal",{"$f":"SUM(J22:J23)","v":0}]
[]
["Pasajes terrestres",null,null,null,null,null,null,null,null,"Importe"]
["Autobús",null,null,null,null,null,null,null,null,0]
["Taxi",null,null,null,null,null,null,null,null,0]
[null,null,null,null,null,null,null,null,"Subtotal",{"$f":"SUM(J27:J28)","v":0}]
[]
["Otros impuestos y derechos",null,null,null,null,null,null,null,null,"Importe"]
["Peajes",null,null,null,null,null,null,null,null,0]
["Estacionamiento (Parquímetro con ticket)",null,null,null,null,null,null,null,null,0]
[null,null,null,null,null,null,null,null,"Subtotal",{"$f":"SUM(J32:J33)","v":0}]
[]
[null,null,null,null,null,null,null,null,"Total",{"$f":"+J24+J29+J34","v":0}]
[]
["La transportación se realizará en ",null,null,null,"Observaciones"]
["Avión","Vehículo oficial","Vehículo propio","Autobús"]
[]
[]
[]
[]
["Nombre y firma",null,null,null,"Nombre y firma"]
["Titular Autoriza",null,null,null,"Comisionado"]
[]
["Vo.Bo. Fiscalización",null,null,null,"Vo. Bo. Presupuesto"]

{"sheet":"Solicitud de Anticipo I (F2-I)","index":2,"n_rows":49,"n_cols":10,"rows_kept":49,"cut":false,"hidden":false,"merged":[[48,0,48,3],[48,4,48,9],[49,0,49,3],[49,4,49,9],[40,0,40,3],[40,4,44,9],[43,0,43,3],[44,0,46,3],[45,4,45,9],[46,4,46,9],[35,0,35,8],[23,0,23,9],[24,0,24,6],[25,0,25,6],[21,0,21,2],[21,3,21,5],[21,6,21,9],[22,0,22,2],[22,3,22,5],[22,6,22,9],[28,0,28,8],[29,0,29,8],[30,0,30,8],[33,0,33,8],[34,0,34,8],[18,3,18,5],[18,6,18,9],[19,0,19,9],[20,0,20,2],[20,3,20,5],[20,6,20,9],[38,7,38,8],[17,1,17,2],[17,3,17,5],[17,6,17,9],[3,0,3,9],[10,3,10,4],[10,8,10,9],[12,1,12,5],[12,6,12,7],[12,8,12,9],[13,1,13,4],[13,6,13,9],[14,1,14,4],[14,6,14,9],[15,1,15,9],[18,1,18,2]]}
[]
[null,null,null,null,null,null,null,null,null,"Secretaria de Administración"]
[null,null,null,null,null,null,null,null,null,"Dirección de Administración Financiera"]
["SOLICITUD DE ANTICIPO DE VIÁTICOS INTERNACIONALES"]
[null,null,null,null,null,null,null,null,null,"CÓDIGO DAF: 7092-MAAGRF-CEGP-02-F-02-I"]
[null,null,null,null,null,null,null,null,null,"NO. DE REVISIÓN: 00"]
[null,null,null,null,null,null,null,null,null,"FECHA DE APROBACIÓN: 28/02/2017"]
[]
[]
[]
[null,null,"Fecha",null,null,null,null,"Folio No. "]
[]
["Comisionado",null,null,null,null,null,"No. de empleado"]
["Puesto",null,null,null,null,"No. de clabe"]
["Lugar de comisión                                           ",null,null,null,null,"Periodo"]
["Objeto de la comisión  "]
[]
["Clave U.A.","Programa presupuestario",null,"Fuente de Financiamiento",null,null,"Clave presupuestaria"]
[]
[]
[]
["Nombre y firma",null,null,"Nombre y firma",null,null,"Nombre y firma"]
["Titular Autoriza",null,null,"Titular de la Dirección General ",null,null,"Titular de la Unidad de Estudios\ne Intercambio Académico"]
[]
["Viáticos",null,null,null,null,null,null,"Tarifa","Días","Importe"]
["Viáticos Internacionales",null,null,null,null,null,null,0,null,{"$f":"H26*I26","v":0}]
[null,null,null,null,null,null,null,null,"Subtotal",{"$f":"SUM(J26:J26)","v":0}]
[]
["Pasajes terrestres",null,null,null,null,null,null,null,null,"Importe"]
["Autobús",null,null,null,null,null,null,null,null,0]
["Taxi",null,null,null,null,null,null,null,null,0]
[null,null,null,null,null,null,null,null,"Subtotal",{"$f":"SUM(J30:J31)","v":0}]
[]
["Otros impuestos y derechos",null,null,null,null,null,null,null,null,"Importe"]
["Peajes",null,null,null,null,null,null,null,null,0]
["Estacionamiento (Parquímetro con ticket)",null,null,null,null,null,null,null,null,0]
[null,null,null,null,null,null,null,null,"Subtotal",{"$f":"SUM(J35:J36)","v":0}]
[]
[null,null,null,null,null,null,null,"Total",null,{"$f":"+J27+J32+J37","v":0}]
[]
["La transportación se realizará en "]
["Avión","Vehículo oficial","Vehículo propio","Autobús"]
[]
["Observaciones"]
[]
[null,null,null,null,"Nombre y firma"]
[null,null,null,null,"Puesto"]
[]
["Vo.Bo. Fiscalización",null,null,null,"Vo. Bo. Presupuesto"]

{"sheet":"Comprobación Ant. Viáticos (F3)","index":3,"n_rows":53,"n_cols":6,"rows_kept":53,"cut":false,"hidden":false,"merged":[[50,0,50,3],[50,4,50,5],[52,0,52,5],[46,0,46,3],[46,4,46,5],[47,0,47,3],[47,4,47,5],[49,0,49,3],[49,4,49,5],[41,1,41,2],[41,3,41,4],[45,0,45,3],[45,4,45,5],[44,0,44,3],[44,4,44,5],[42,0,42,2],[42,3,42,5],[32,0,32,4],[37,2,37,4],[39,0,39,5],[40,1,40,2],[40,3,40,4],[29,1,29,5],[30,0,30,4],[31,0,31,4],[23,1,23,5],[24,0,24,4],[25,0,25,4],[26,0,26,4],[16,0,16,4],[17,0,17,4],[18,0,18,4],[19,0,19,4],[20,0,20,4],[15,1,15,5],[3,0,3,5],[10,0,10,4],[11,1,11,5],[13,1,13,3],[12,1,12,2],[12,4,12,5]]}
[]
[null,null,null,null,null,"Secretaria de Administración"]
[null,null,null,null,null,"Dirección de Administración Financiera"]
["COMPROBACIÓN DE ANTICIPO DE VIÁTICOS NACIONALES"]
[null,null,null,null,null,"CÓDIGO DAF: 7092-MAAGRF-CEGP-02-F-03"]
[null,null,null,null,null,"NO. DE REVISIÓN: 00"]
[null,null,null,null,null,"FECHA DE APROBACIÓN: 28/02/2017"]
[]
[null,null,"Fecha",null,null,"Folio:"]
[]
["Número de folio de la solicitud de anticipo de viáticos que se comprueba"]
["Comisionado"]
["No. de empleado",null,null,"Puesto"]
["Lugar de comisión                                    ",null,null,null,"Periodo"]
[]
["Clave Presupuestaria                                                   "]
["Viáticos",null,null,null,null,"Importe"]
["Hospedaje",null,null,null,null,0]
["Alimentación",null,null,null,null,0]
["Estacionamientos con comprobante",null,null,null,null,0]
["Gastos sin comprobante (1)",null,null,null,null,0]
[null,null,null,null,"Subtotal",{"$f":"SUM(F18:F21)","v":0}]
[]
["Clave Presupuestaria                                            "]
["Pasajes",null,null,null,null,"Importe"]
["Autobús",null,null,null,null,0]
["Taxis",null,null,null,null,0]
[null,null,null,null,"Subtotal",{"$f":"SUM(F26:F27)","v":0}]
[]
["Clave Presupuestaria                                           "]
["Otros impuestos y derechos",null,null,null,null,"Importe"]
["Peajes",null,null,null,null,0]
["Estacionamiento con ticket (Parquímetro)",null,null,null,null,0]
[null,null,null,null,"Subtotal",{"$f":"SUM(F32:F33)","v":0}]
[]
[null,null,null,null,"Total",{"$f":"+F34+F28+F22","v":0}]
[null,null,null,null,"Monto anticipo de viáticos",0]
[null,null,"Saldo a cargo o favor",null,null,{"$f":"+F37-F36","v":0}]
[]
["Transportación autorizada al lugar de la comisión"]
["Vehículo oficial","Vehículo propio",null,"Avión",null,"        Autobús"]
[" "," "]
[null,null,null,"Se anexan pases de abordar originales "]
[]
["Hago constar que los documentos que se acompañan a la presente comprobación de comisión oficial, fueron obtenidos de las personas físicas o morales que los expidieron y erogados exclusivamente para la misma; los cuales firmo en su contenido para los efectos legales y administrativos procedentes."]
[]
["Nombre y firma",null,null,null,"Nombre y firma"]
["Puesto",null,null,null,"Puesto"]
[]
["Vo.Bo. Fiscalización",null,null,null,"Vo.Bo. Presupuesto"]
[]
[]
["(1) De acuerdo al artículo 152 del Reglamento de la Ley del Impuesto Sobre la Renta, las personas físicas que reciban viáticos y efectivamente los eroguen en servicio del patrón, podrán no presentar comprobantes fiscales hasta por un 20% del total de los viáticos erogados en cada ocasión, siempre que el monto restante de los viáticos se eroguen mediante tarjeta de crédito, de débito o de servicio del patrón. La parte que en su caso no se erogue deberá ser reintegrada por las persona física que reciban los viáticos o en caso contrario no le será aplicable lo dispuesto en este artículo."]

{"sheet":"Comp. Ant. Viáticos Int. (F3-I)","index":4,"n_rows":53,"n_cols":6,"rows_kept":53,"cut":false,"hidden":false,"merged":[[49,0,49,3],[49,4,49,5],[50,0,50,3],[50,4,50,5],[52,0,52,5],[45,0,45,3],[45,4,45,5],[46,0,46,3],[46,4,46,5],[47,0,47,3],[47,4,47,5],[41,1,41,2],[41,3,41,4],[42,0,42,2],[42,3,42,5],[44,0,44,3],[44,4,44,5],[31,0,31,4],[32,0,32,4],[37,2,37,4],[39,0,39,5],[40,1,40,2],[40,3,40,4],[30,0,30,4],[15,1,15,5],[16,0,16,4],[17,0,17,4],[18,0,18,4],[19,0,19,4],[20,0,20,4],[23,1,23,5],[24,0,24,4],[25,0,25,4],[26,0,26,4],[29,1,29,5],[13,1,13,3],[3,0,3,5],[10,0,10,4],[11,1,11,5],[12,1,12,2],[12,4,12,5]]}
[]
[null,null,null,null,null,"Secretaria de Administración"]
[null,null,null,null,null,"Dirección de Administración Financiera"]
["COMPROBACIÓN DE ANTICIPO DE VIÁTICOS INTERNACIONALES"]
[null,null,null,null,null,"CÓDIGO DAF: 7092-MAAGRF-CEGP-02-F-03-I"]
[null,null,null,null,null,"NO. DE REVISIÓN: 00"]
[null,null,null,null,null,"FECHA DE APROBACIÓN: 28/02/2017"]
[]
[null,null,"Fecha",null,null,"Folio:"]
[]
["Número de folio de la solicitud de anticipo de viáticos que se comprueba"]
["Comisionado"]
["No. de empleado",null,null,"Puesto"]
["Lugar de comisión                                    ",null,null,null,"Periodo"]
[]
["Clave Presupuestaria                                                   "]
["Viáticos",null,null,null,null,"Importe"]
["Hospedaje",null,null,null,null,0]
["Alimentación",null,null,null,null,0]
["Gastos de camino",null,null,null,null,0]
["Gastos sin comprobante (1)",null,null,null,null,0]
[null,null,null,null,"Subtotal",{"$f":"SUM(F18:F21)","v":0}]
[]
["Clave Presupuestaria                                            "]
["Pasajes",null,null,null,null,"Importe"]
["Autobús",null,null,null,null,0]
["Taxis",null,null,null,null,0]
[null,null,null,null,"Subtotal",{"$f":"SUM(F26:F27)","v":0}]
[]
["Clave Presupuestaria                                           "]
["Otros impuestos y derechos",null,null,null,null,"Importe"]
["Peajes",null,null,null,null,0]
["Estacionamiento con ticket (Parquímetro)",null,null,null,null,0]
[null,null,null,null,"Subtotal",{"$f":"SUM(F32:F33)","v":0}]
[]
[null,null,null,null,"Total",{"$f":"+F34+F28+F22","v":0}]
[null,null,null,null,"Monto anticipo de viáticos",0]
[null,null,"Saldo a cargo o favor",null,null,{"$f":"+F37-F36","v":0}]
[]
["Transportación autorizada al lugar de la comisión"]
["Vehículo oficial","Vehículo propio",null,"Avión",null,"        Autobús"]
[" "," "]
[null,null,null,"Se anexan pases de abordar originales "]
[]
["Hago constar que los documentos que se acompañan a la presente comprobación de comisión oficial, fueron obtenidos de las personas físicas o morales que los expidieron y erogados exclusivamente para la misma; los cuales firmo en su contenido para los efectos legales y administrativos procedentes."]
[]
["Nombre y firma",null,null,null,"Nombre y firma"]
["Puesto",null,null,null,"Puesto"]
[]
["Vo.Bo. Fiscalización",null,null,null,"Vo.Bo. Presupuesto"]
[]
[]
["(1) De acuerdo al artículo 152 del Reglamento de la Ley del Impuesto Sobre la Renta, las personas físicas que reciban viáticos y efectivamente los eroguen en servicio del patrón, podrán no presentar comprobantes fiscales hasta por un 20% del total de los viáticos erogados en cada ocasión, siempre que el monto restante de los viáticos se eroguen mediante tarjeta de crédito, de débito o de servicio del patrón. La parte que en su caso no se erogue deberá ser reintegrada por las persona física que reciban los viáticos o en caso contrario no le será aplicable lo dispuesto en este artículo."]

{"sheet":"Reembolso de Viáticos (F4)","index":5,"n_rows":46,"n_cols":13,"rows_kept":46,"cut":false,"hidden":false,"merged":[[18,6,18,7],[19,6,19,7],[18,0,19,5],[10,0,10,1],[11,0,11,1],[12,0,12,1],[12,2,12,7],[13,0,15,1],[13,2,15,7],[11,2,11,7],[16,0,16,2],[17,0,17,8],[11,8,11,9],[11,10,11,12],[12,9,12,12],[8,6,8,7],[8,11,8,12],[10,2,10,7],[10,8,10,9],[10,10,10,12],[13,8,13,9],[14,8,14,9],[13,10,13,12],[14,10,14,12],[15,10,15,12],[15,8,15,9],[17,11,17,12],[32,7,32,12],[33,7,36,12],[37,0,38,6],[20,11,20,12],[22,6,22,8],[22,10,22,12],[18,11,18,12],[19,11,19,12],[22,1,22,4],[20,0,20,10],[23,11,23,12],[24,3,24,4],[24,5,25,6],[24,7,25,8],[24,9,25,10],[24,11,25,12],[25,3,25,4],[23,3,23,4],[23,5,23,6],[23,7,23,8],[23,9,23,10],[43,7,43,12],[30,0,30,2],[30,3,30,4],[30,5,30,6],[30,7,30,8],[30,9,30,10],[36,0,36,6],[37,7,38,12],[39,0,39,6],[40,0,40,6],[28,0,28,2],[27,0,27,2],[25,0,25,2],[30,11,30,12],[42,7,42,12],[26,11,27,12],[27,3,27,4],[28,3,28,4],[28,5,28,6],[28,7,28,8],[28,9,28,10],[28,11,28,12],[26,3,26,4],[26,5,27,6],[26,7,27,8],[26,9,27,10],[24,0,24,2],[26,0,26,2],[23,0,23,2],[3,0,3,12],[45,0,45,12],[33,3,33,4],[39,7,39,12],[40,7,40,12],[33,0,33,2],[43,0,43,6],[42,0,42,6],[32,0,32,6],[34,0,35,2],[34,3,35,4],[34,5,35,5],[34,6,35,6]]}
[]
[null,null,null,null,null,null,null,null,null,null,null,null,"Secretaria de Administración"]
[null,null,null,null,null,null,null,null,null,null,null,null,"Dirección de Administración Financiera"]
["REEMBOLSO DE VIÁTICOS "]
[null,null,null,null,null,null,null,null,null,null,null,null,"CÓDIGO DAF: 7092-MAAGRF-CEGP-02-F-04"]
[null,null,null,null,null,null,null,null,null,null,null,null,"NO. DE REVISIÓN: 00"]
[null,null,null,null,null,null,null,null,null,null,null,null,"FECHA DE APROBACIÓN: 28/02/2017"]
[]
[null,null,null,null,null," Fecha",null,null,null,null,"Folio No."]
[]
["Comisionado",null,null,null,null,null,null,null,"No. de empleado"]
["Puesto",null,null,null,null,null,null,null,"No. de clabe  ","00000000000000000000"]
["Lugar de comisión                                    ",null,null,null,null,null,null,null,"Periodo"]
["Objeto de la comisión",null,null,null,null,null,null,null,"Clave U.A."]
[null,null,null,null,null,null,null,null,"Programa presupuestario"]
[null,null,null,null,null,null,null,null,"Fuente de Financiamiento"]
["Registro Presupuestal"]
["Viáticos",null,null,null,null,null,null,null,null,"Tarifa","Días","Importe"]
["Viáticos Nacionales",null,null,null,null,null,"Sin pernocta",null,null,0,0,{"$f":"J19*K19","v":0}]
[null,null,null,null,null,null,"Con pernocta",null,null,0,0,{"$f":"J20*K20","v":0}]
["Total",null,null,null,null,null,null,null,null,null,null,{"$f":"SUM(L19:M20)","v":0}]
[]
["Clave Presupuestaria",null,null,null,null,"Clave Presupuestaria",null,null,null,"Clave Presupuestaria"]
["Viáticos",null,null,"Importe",null,"Pasajes Terrestres",null,"Importe",null,"Otros impuestos y derechos",null,"Importe"]
["Hospedaje",null,null,0,null,"Autobús",null,0,null,"Peajes",null,0]
["Alimentación",null,null,0]
["Estacionamientos con comprobante",null,null,0,null,"Taxis",null,0,null,"Estacionamiento con ticket (Parquímetro)",null,0]
["Gastos sin comprobante (1)",null,null,0]
["Subtotal",null,null,{"$f":"SUM(D25:E28)","v":0},null,"Subtotal",null,{"$f":"SUM(H25:H28)","v":0},null,"Subtotal",null,{"$f":"SUM(L25:M28)","v":0}]
[]
[null,null,null,null,null,null,null,null,null,"Total a pagar",null,{"$f":"+D29+H29+L29","v":0}]
[]
["Tipo de transportación ",null,null,null,null,null,null,"Observaciones"]
["Vehículo oficial",null,null,"Vehículo propio",null,"Avión","Autobús"]
[]
[]
["Hago constar que los documentos que se acompañan a la presente comprobación de comisión oficial, fueron obtenidos de las personas físicas o morales que los expidieron y erogados exclusivamente para la misma; los cuales firmo en su contenido para los efectos legales y administrativos procedentes."]
[]
[]
["Nombre y firma",null,null,null,null,null,null,"Nombre y firma (Titular que autoriza)"]
["Puesto",null,null,null,null,null,null,"Puesto"]
[]
["Vo.Bo. Fiscalización",null,null,null,null,null,null,"Vo. Bo. Presupuesto"]
[]
[]
["(1) De acuerdo al artículo 152 del Reglamento de la Ley del Impuesto Sobre la Renta, las personas físicas que reciban viáticos y efectivamente los eroguen en servicio del patrón, podrán no presentar comprobantes fiscales hasta por un 20% del total de los viáticos erogados en cada ocasión, siempre que el monto restante de los viáticos se eroguen mediante tarjeta de crédito, de débito o de servicio del patrón. La parte que en su caso no se erogue deberá ser reintegrada por las persona física que reciban los viáticos o en caso contrario no le será aplicable lo dispuesto en este artículo."]

{"sheet":"Informe de Comision (F5)","index":6,"n_rows":27,"n_cols":4,"rows_kept":27,"cut":false,"hidden":false,"merged":[[25,2,25,3],[26,2,26,3],[25,0,25,1],[26,0,26,1],[22,0,22,1],[24,0,24,1],[4,0,4,3],[24,2,24,3],[22,2,22,3],[11,1,11,3],[16,0,16,3],[18,0,18,3],[20,0,20,3]]}
[]
[]
[null,null,null,"Secretaria de Administración"]
[null,null,null,"Dirección de Administración Financiera"]
["INFORME DE COMISIÓN"]
[null,null,null,"CÓDIGO DAF: 7092-MAAGRF-CEGP-02-F-05"]
[null,null,null,"NO. DE REVISIÓN: 00"]
[null,null,null,"FECHA DE APROBACIÓN: 28/02/2017"]
[]
[null,"Fecha"]
[]
["Comisionado"]
["Puesto",null,"No. de empleado"]
["Lugar de comisión                                                    ",null,"Periodo"]
[]
["Comisión desempeñada"]
[]
["Actividades realizadas"]
[]
["Conclusiones y resultados obtenidos       "]
[]
[]
["\"Declaro bajo protesta de decir verdad, que los datos contenidos en este formato son los solicitados y manifiesto tener conocimiento de las sanciones que se aplicarán en caso contrario\""]
[]
[]
["Nombre y Firma",null,"Nombre y Firma (autoriza)"]
["Puesto",null,"Puesto"]

{"sheet":"Gtos sin Comp (F6)","index":7,"n_rows":34,"n_cols":7,"rows_kept":34,"cut":false,"hidden":false,"merged":[[16,0,16,6],[4,0,4,6],[9,1,9,2],[11,1,11,6],[12,1,12,4],[14,1,14,6],[13,1,13,6],[32,1,32,5],[33,1,33,5],[28,1,31,5],[25,1,25,5],[24,1,24,5],[22,4,22,5],[22,1,22,3],[18,1,18,3],[19,1,19,3],[20,1,20,3],[21,1,21,3],[18,4,18,5],[19,4,19,5],[20,4,20,5],[21,4,21,5]]}
[]
[]
[null,null,null,null,null,null,"Secretaria de Administración"]
[null,null,null,null,null,null,"Dirección de Administración Financiera"]
["GASTOS SIN COMPROBANTE"]
[null,null,null,null,null,null,"CÓDIGO DAF: 7092-MAAGRF-CEGP-02-F-06"]
[null,null,null,null,null,null,"NO. DE REVISIÓN: 00"]
[null,null,null,null,null,null,"FECHA DE APROBACIÓN: 28/02/2017"]
[]
["Fecha"]
[]
["Comisionado"]
["Puesto",null,null,null,null,"No. de empleado"]
["Lugar de comisión                                             "]
["Periodo"]
[]
["Declaro que los viáticos recibidos y efectivamente erogados fueron en servicio del CONALEP, y que los gastos sin comprobante fiscal que se presentan no exceden el 20% del total de los viáticos ejercidos. Asimismo, el monto restante de los viáticos fueron pagados con tarjeta de crédito o de débito. Esto en cumplimiento al artículo 152 del Reglamento de la Ley del Impuesto Sobre la Renta."]
[]
[null,"Concepto",null,null,"Importe"]
[null,"Alimentación",null,null,0]
[null,"Traslado",null,null,0]
[null,"Otros",null,null,0]
[null,"Total",null,null,{"$f":"SUM(E20:F22)","v":0}]
[]
[null,{"$f":"Numletra(E23)","v":"(CERO PESOS 00/100 M.N.)"}]
[null,"(Importe con letra)"]
[]
[]
[]
[]
[]
[]
[null,"Nombre y Firma"]
[null,"Puesto"]

{"sheet":"desglose11","index":8,"n_rows":61,"n_cols":11,"rows_kept":61,"cut":false,"hidden":false,"merged":[[12,0,12,3],[12,4,12,10],[4,0,4,10],[10,0,10,6],[10,7,10,10],[11,0,11,8],[11,9,11,10],[25,1,25,2],[25,5,25,6],[25,8,25,10],[13,0,13,10],[14,2,14,5],[15,2,15,5],[16,2,16,5],[17,2,17,5],[18,2,18,5],[19,2,19,5],[20,2,20,5],[21,6,21,9],[22,6,22,9],[23,6,23,9],[41,2,41,7],[26,1,26,2],[26,4,26,7],[26,8,26,10],[30,1,30,2],[30,5,30,6],[30,8,30,10],[33,6,33,8],[35,0,35,7],[36,5,36,8],[37,1,37,7],[40,2,40,7],[53,2,53,7],[42,2,42,7],[43,2,43,7],[44,2,44,7],[45,2,45,7],[46,2,46,7],[47,2,47,7],[48,2,48,7],[49,2,49,7],[50,2,50,7],[51,2,51,7],[52,2,52,7],[60,2,60,7],[54,2,54,7],[55,2,55,7],[56,2,56,7],[57,2,57,7],[58,2,58,7],[59,2,59,7]]}
[]
[]
[null,null,null,null,null,null,null,null,null,null,"Secretaria de Administración"]
[null,null,null,null,null,null,null,null,null,null,"Dirección de Administración Financiera"]
["DESGLOSE PORMENORIZADO DE COMISIONES OFICIALES INTERNACIONALES"]
[null,null,null,null,null,null,null,null,null,null,"CÓDIGO DAF: 7092-MAAGRF-CEGP-02-F-07"]
[null,null,null,null,null,null,null,null,null,null,"NO. DE REVISIÓN: 00"]
[null,null,null,null,null,null,null,null,null,null,"FECHA DE APROBACIÓN: 16/05/2017"]
[]
[null,null,null,"Fecha de elaboración:",null,"(1)"]
["Nombre del Comisionado:                                       (2)",null,null,null,null,null,null,"Puesto:                                 (3)"]
["Unidad Administrativa:                             (4)",null,null,null,null,null,null,null,null,"Clave:         (5)"]
["Pais de Comisión:                        (6)                                                                    ",null,null,null,"Período de Comisión: Del             (7)                 al                                       de 20…."]
["Declaro bajo protesta de decir  verdad y de conformidad a lo previsto en la Ley Federal de Responsabilidades Administrativas de los Servidores Públicos, que la relación de gastos que se presente, se refiere a erogaciones realizadas en el desempeño de la comisión que se menciona y que no requiere documentación  comprobatoria con requisitos fiscales "]
["NO. DE DOCTO","FECHA","CONCEPTO",null,null,null,"MONEDA EXTRANJERA","TIPO DE CAMBIO","IMPORTE DOLARES (USD)","TIPO DE CAMBIO M.N.","IMPORTE EN PESOS"]
["(8)","(9)","(10)",null,null,null,"(11)","(12","(13)","(14)","(15)"]
[]
[]
[]
[]
[]
[null,null,null,null,null,null,"TOTAL DE VIATICOS COMPROBADOS",null,null,null,"(16)"]
[null,null,null,null,null,null,"ANTICIPO DE VIATICOS OTORGADOS",null,null,null,"(17)"]
[null,null,null,null,null,null,"SALDO A CARGO (A FAVOR):",null,null,null,"(18)"]
[]
[null,"Comisionado",null,null,null,"Titular de la Unidad de estudios e Intercambio Académico",null,null,"Titular de la Unidad Administrativa"]
[null,"(19)",null,null,"(20)",null,null,null,"(21)"]
[]
[]
[]
[null,"Nombre y firma",null,null,null,"Nombre y firma",null,null,"Nombre y Firma"]
[]
[]
[]
[]
["DESGLOCE PORMENORIZADO DE COMISIONES OFICIALES INTERNACIONALES"]
[]
[null,"INSTRUCTIVO DE LLENADO"]
[]
[]
[null,"(1)","Anotar la fecha de elaboración."]
[null,"(2)","Anotar el nombre del comisionado."]
[null,"(3)","Anotar el puesto del comisionado."]
[null,"(4) ","Anotar el nombre de la Unidad Administrativa."]
[null,"(5)","Anotar la clave de la Unidad Administrativa."]
[null,"(6)","Anotar el país de comisión."]
[null,"(7)","Anotar el período de la comisión."]
[null,"(8)","Anotar el número de la factura o comprobante."]
[null,"(9)","Anotar la fecha del comprobante."]
[null,"(10)","Anotar la razón social y tipo de gasto (hospedaje, alimentos, traslados, etc.)"]
[null,"(11)","Anotar el importe de la moneda extranjera que viene en la factura o comprobante."]
[null,"(12)","Anotar el tipo de cambio."]
[null,"(13)","Anotar la conversión en dólares."]
[null,"(14)","Anotar el tipo de cambio en moneda nacional (pesos)"]
[null,"(15)","Anotar el importe en moneda nacional."]
[null,"(16)","Anotar el total de los gastos comprobados."]
[null,"(17)","Anotar el importe de los viáticos otorgados."]
[null,"(18)","Anotar en su caso, el reintegro no comprobado."]
[null,"(19)","Nombre y firma del comisionado."]
[null,"(20)","Nombre y firma del Titular de la Unidad de Estudios e Intercambio Académico"]
[null,"(21)","Firma del titular de la Unidad Administrativa a la que esta adscrito el comisionado."]